bitfinex/quotes_BTCUSD_20250414
["timestamp","ask_amount","ask_price","bid_price","bid_amount"]
[1744610528386,0.0452,84523.0,84522.0,0.189299]
[1744610528680,0.0462,84523.0,84522.0,0.189299]
[1744610529018,0.0452,84523.0,84522.0,0.189299]
[1744610529471,0.0462,84523.0,84522.0,0.189299]
[1744610530793,0.0452,84523.0,84522.0,0.189299]
[1744610530987,0.0462,84523.0,84522.0,0.189299]
[1744610533193,0.0462,84523.0,84520.0,0.201134]
[1744610533391,0.0462,84523.0,84522.0,0.189299]
[1744610535422,0.0462,84523.0,84522.0,0.19969101]
[1744610542237,0.0462,84523.0,84522.0,0.01039201]
[1744610542638,0.0462,84523.0,84520.0,0.011831]
[1744610542798,0.0462,84523.0,84470.0,0.09999932]
[1744610542799,0.011833,84509.0,84498.0,0.011834]
[1744610542997,0.011833,84507.0,84501.0,0.011834]
[1744610543199,0.0471,84506.0,84504.0,0.189338]
[1744610543403,0.0471,84506.0,84505.0,0.011833]
[1744610543600,0.0489,84513.0,84512.0,0.189322]
[1744610543811,0.03304297,84513.0,84512.0,0.201154]
[1744610544024,0.03304297,84513.0,84512.0,0.20161741]
[1744610544194,0.01101777,84513.0,84512.0,0.01229541]
[1744610544390,0.01101777,84513.0,84512.0,0.00046341]
[1744610545240,0.03403758,84513.0,84512.0,0.00046341]
[1744610549180,0.03403758,84513.0,84512.0,0.01087441]
[1744610549414,0.03403758,84513.0,84512.0,0.00046341]
[1744610550792,0.03403758,84513.0,84512.0,0.18978541]
[1744610551196,0.01201777,84513.0,84512.0,0.20020451]
[1744610551547,0.001,84513.0,84512.0,0.20020451]
[1744610553382,0.001,84513.0,84512.0,0.01088251]
[1744610554000,0.0724808,84513.0,84512.0,0.00046341]
[1744610554202,0.0724808,84513.0,84512.0,0.01085679]
[1744610554203,0.097,84513.0,84512.0,0.01085679]
[1744610554403,0.097,84513.0,84512.0,0.00046341]
[1744610554566,0.11904961,84513.0,84512.0,0.00046341]
[1744610554762,0.1300725,84513.0,84512.0,0.00046341]
[1744610555365,0.1290725,84513.0,84512.0,0.00046341]
[1744610555843,0.1300725,84513.0,84512.0,0.00046341]
[1744610556408,0.1300725,84513.0,84487.0,0.189798]
[1744610556409,0.189376,84488.0,84487.0,0.000422]
[1744610556630,0.0942,84488.0,84487.0,0.00056108]
[1744610556860,0.1272725,84488.0,84487.0,0.00056108]
[1744610557216,0.10522289,84488.0,84487.0,0.00056108]
[1744610558356,0.10522289,84488.0,84487.0,0.01204468]
[1744610558625,0.10522289,84488.0,84487.0,0.00156108]
[1744610558771,0.10522289,84488.0,84487.0,0.01104468]
[1744610558991,0.10622289,84488.0,84487.0,0.00056108]
[1744610559291,0.0962,84488.0,84487.0,0.00056108]
[1744610559514,0.0962,84488.0,84487.0,0.01115219]
[1744610559995,0.0962,84488.0,84487.0,0.00056108]
[1744610560205,0.0962,84488.0,84487.0,0.01115219]
[1744610560406,0.0962,84488.0,84487.0,0.00056108]
[1744610560562,0.0962,84488.0,84487.0,0.01115219]
[1744610560764,0.0962,84488.0,84487.0,0.00056108]
[1744610560958,0.0962,84488.0,84487.0,0.01115219]
[1744610561693,0.10720358,84488.0,84487.0,0.01115219]
[1744610562783,0.12920474,84488.0,84487.0,0.01115219]
[1744610563489,0.12920474,84488.0,84487.0,0.00056108]
[1744610564085,0.12899175,84488.0,84487.0,0.00056108]
[1744610564284,0.12899175,84488.0,84487.0,0.01116582]
[1744610564489,0.12899175,84488.0,84487.0,0.00056108]
[1744610565206,0.12799175,84488.0,84487.0,0.00056108]
[1744610565582,0.26935175,84488.0,84487.0,0.00056108]
[1744610565821,0.27035175,84488.0,84487.0,0.00056108]
[1744610566281,0.26935175,84488.0,84487.0,0.00056108]
[1744610566452,0.27135175,84488.0,84487.0,0.00056108]
[1744610567216,0.27435175,84488.0,84487.0,0.00056108]
[1744610571996,0.39519329,84488.0,84487.0,0.00056108]
[1744610572408,1.15169329,84488.0,84487.0,0.00056108]
[1744610572608,1.27342177,84488.0,84487.0,0.00056108]
[1744610573010,1.27314177,84488.0,84487.0,0.00056108]
[1744610573201,0.285793,84480.0,84478.0,0.0004219]
[1744610573396,0.5792427,84479.0,84478.0,0.0004219]
[1744610573651,1.00674628,84479.0,84478.0,0.0004219]
[1744610574307,1.12747476,84479.0,84478.0,0.0004219]
[1744610574633,0.111837,84474.0,84471.0,0.002]
[1744610574822,0.625811,84472.0,84471.0,0.002]
[1744610575021,1.26415254,84472.0,84471.0,0.002]
[1744610575223,1.2861537,84472.0,84471.0,0.002]
[1744610576125,0.529432,84463.0,84462.0,0.0004222]
[1744610576326,1.2432147,84463.0,84462.0,0.00048799]
[1744610577309,1.25421828,84463.0,84462.0,0.00048799]
[1744610577711,1.30390423,84463.0,84462.0,0.00048799]
[1744610577908,1.26021828,84463.0,84462.0,0.00048799]
[1744610578090,1.26521828,84463.0,84462.0,0.00048799]
[1744610579440,1.31261828,84463.0,84462.0,0.00048799]
[1744610579860,1.36161828,84463.0,84462.0,0.00048799]
[1744610580099,1.48234676,84463.0,84462.0,0.00048799]
[1744610580424,1.36161828,84463.0,84462.0,0.00048799]
[1744610583609,1.17218628,84463.0,84462.0,0.00048799]
[1744610583810,0.61494474,84463.0,84462.0,0.00048799]
[1744610584617,0.59294358,84463.0,84462.0,0.00048799]
[1744610584860,0.58194358,84463.0,84462.0,0.0114248]
[1744610585193,0.58494358,84463.0,84462.0,0.0114248]
[1744610585591,0.43050358,84463.0,84462.0,0.0114248]
[1744610586007,0.003,84463.0,84462.0,0.0114248]
[1744610586250,0.007,84463.0,84462.0,0.0114248]
[1744610586800,0.008,84463.0,84462.0,0.0114248]
[1744610587134,0.003,84463.0,84462.0,0.0114248]
[1744610587342,0.003,84463.0,84462.0,0.0134248]
[1744610588044,0.15444,84477.0,84474.0,0.011837]
[1744610588443,0.15444,84477.0,84475.0,0.189405]
[1744610588761,0.15444,84477.0,84474.0,0.201244]
[1744610588961,0.15444,84477.0,84476.0,0.189402]
[1744610589133,0.15644,84477.0,84476.0,0.20028663]
[1744610589804,0.15544,84477.0,84476.0,0.01088463]
[1744610590047,0.16543459,84477.0,84476.0,0.01088463]
[1744610590271,0.011837,84476.0,84473.0,0.011838]
[1744610590501,0.011837,84476.0,84474.0,0.0108744]
[1744610590714,0.16743459,84477.0,84474.0,0.0227114]
[1744610590919,0.15644,84477.0,84475.0,0.189405]
[1744610591123,0.15444,84477.0,84475.0,0.189405]
[1744610591328,0.15644,84477.0,84476.0,0.01086418]
[1744610591527,0.011837,84474.0,84471.0,0.011838]
[1744610591743,0.012837,84476.0,84472.0,0.02270558]
[1744610592451,0.20224,84476.0,84472.0,0.02270558]
[1744610592887,0.20124,84476.0,84472.0,0.02270558]
[1744610593094,0.20224,84476.0,84472.0,0.02270558]
[1744610593713,0.20324,84476.0,84472.0,0.02270558]
[1744610594024,0.20324,84476.0,84472.0,0.011838]
[1744610594238,0.01100189,84475.0,84472.0,0.201249]
[1744610594639,0.01100189,84475.0,84473.0,0.01089145]
[1744610595049,0.01100189,84475.0,84472.0,0.011838]
[1744610595310,0.011837,84475.0,84472.0,0.011838]
[1744610595508,0.011837,84474.0,84471.0,0.011838]
[1744610595741,0.011837,84474.0,84472.0,0.01087781]
[1744610596099,0.201244,84474.0,84472.0,0.01087781]
[1744610596300,0.201244,84474.0,84470.0,0.011838]
[1744610596634,0.202244,84474.0,84471.0,0.01089486]
[1744610597103,0.189411,84473.0,84471.0,0.01089486]
[1744610597309,0.011839,84465.0,84461.0,0.0004222]
[1744610597459,0.18943,84464.0,84461.0,0.0004222]
[1744610597666,0.11940625,84463.0,84461.0,0.0004222]
[1744610597830,0.24024779,84463.0,84461.0,0.0004222]
[1744610598237,0.25125276,84463.0,84461.0,0.0004222]
[1744610598445,0.25125276,84463.0,84462.0,0.00148799]
[1744610598761,0.35828124,84463.0,84462.0,0.00148799]
[1744610598944,0.69828124,84463.0,84462.0,0.00048799]
[1744610599153,0.70228124,84463.0,84462.0,0.00048799]
[1744610600129,1.12478124,84463.0,84462.0,0.00048799]
[1744610601528,1.01775276,84463.0,84462.0,0.00048799]
[1744610602297,0.73967485,84462.0,84461.0,1.9e-07]
[1744610602673,0.86798179,84462.0,84461.0,1.9e-07]
[1744610603080,0.87798676,84462.0,84461.0,1.9e-07]
[1744610603549,0.99871524,84462.0,84461.0,1.9e-07]
[1744610603754,0.88298676,84462.0,84461.0,1.9e-07]
[1744610603946,0.78298676,84462.0,84461.0,1.9e-07]
[1744610604130,0.94146676,84462.0,84461.0,1.9e-07]
[1744610605904,0.55546676,84462.0,84461.0,1.9e-07]
[1744610606104,0.19649122,84462.0,84461.0,1.9e-07]
[1744610606301,0.04201122,84462.0,84461.0,1.9e-07]
[1744610606506,0.20085122,84462.0,84461.0,0.01091464]
[1744610606760,0.17884497,84462.0,84461.0,0.01091464]
[1744610607066,0.16984497,84462.0,84461.0,0.01091464]
[1744610607272,0.17384497,84462.0,84461.0,0.01091464]
[1744610607649,0.17084497,84462.0,84461.0,0.01091464]
[1744610608026,0.17284497,84462.0,84461.0,0.01091464]
[1744610608242,0.16184,84462.0,84461.0,0.01091464]
[1744610608609,0.003,84462.0,84461.0,0.13175618]
[1744610608809,0.003,84462.0,84461.0,0.14629703]
[1744610608951,0.005,84462.0,84461.0,0.14866477]
[1744610609153,0.004,84462.0,84461.0,0.14866477]
[1744610609477,0.004,84462.0,84461.0,0.53616477]
[1744610609649,0.15884,84489.0,84486.0,0.011836]
[1744610609991,0.15884,84489.0,84487.0,0.20016461]
[1744610610193,0.011834,84499.0,84496.0,0.011834]
[1744610610583,0.011834,84499.0,84497.0,0.01081664]
[1744610610750,0.011834,84499.0,84495.0,0.011835]
[1744610610945,0.011,84500.0,84497.0,0.201189]
[1744610611150,0.21421893,84501.0,84499.0,0.189351]
[1744610611354,0.21421893,84501.0,84500.0,0.01076212]
[1744610612203,0.15897896,84501.0,84500.0,0.01076212]
[1744610612560,0.15997896,84501.0,84500.0,0.01076212]
[1744610613008,0.15997896,84501.0,84499.0,0.189351]
[1744610613212,0.15997896,84501.0,84490.0,0.011835]
[1744610613213,0.011835,84495.0,84490.0,0.011835]
[1744610613517,0.011835,84495.0,84491.0,0.011835]
[1744610613716,0.011835,84495.0,84492.0,0.011835]
[1744610613915,0.01165492,84496.0,84492.0,0.011835]
[1744610615381,0.201195,84495.0,84491.0,0.011835]
[1744610615605,0.12262784,84510.0,84483.0,0.011836]
[1744610615919,0.011837,84478.0,84474.0,0.011837]
[1744610616125,0.011838,84472.0,84468.0,0.011838]
[1744610616465,0.011838,84469.0,84465.0,0.011839]
[1744610616665,0.011838,84468.0,84464.0,0.011839]
[1744610616920,0.011838,84469.0,84464.0,0.011839]
[1744610616921,0.011838,84471.0,84465.0,0.201266]
[1744610617373,0.011838,84471.0,84468.0,0.011838]
[1744610618150,0.011838,84471.0,84468.0,0.014838]
[1744610619217,0.011838,84471.0,84466.0,0.011839]
[1744610619567,0.011837,84478.0,84471.0,0.189414]
[1744610619778,0.170637,84480.0,84475.0,0.011837]
[1744610619953,0.1588,84480.0,84475.0,0.011837]
[1744610620155,0.1588,84480.0,84478.0,0.189398]
[1744610620359,0.1588,84480.0,84479.0,0.01081879]
[1744610622679,0.1588,84480.0,84478.0,0.003]
[1744610622838,0.1588,84480.0,84479.0,0.01480072]
[1744610623564,0.011838,84469.0,84464.0,0.011839]
[1744610623741,0.201256,84469.0,84465.0,0.02260221]
[1744610623947,0.011838,84473.0,84468.0,0.011838]
[1744610624163,0.201252,84471.0,84469.0,0.01077685]
[1744610624384,0.011838,84471.0,84468.0,0.011838]
[1744610624565,0.011838,84473.0,84469.0,0.02260803]
[1744610624761,0.011838,84473.0,84470.0,0.011838]
[1744610624966,0.011838,84472.0,84471.0,0.01077685]
[1744610625170,0.011838,84471.0,84468.0,0.011838]
[1744610625370,0.011838,84472.0,84469.0,0.02260803]
[1744610625604,0.011838,84472.0,84469.0,0.01077003]
[1744610625809,0.189414,84471.0,84469.0,0.01077003]
[1744610625961,0.189414,84471.0,84470.0,0.006]
[1744610626305,0.189414,84471.0,84470.0,0.01077344]
[1744610626669,0.189414,84471.0,84464.0,0.011839]
[1744610626670,0.189414,84471.0,84469.0,0.008]
[1744610626869,0.189414,84471.0,84469.0,0.002]
[1744610627100,0.189414,84471.0,84470.0,0.01077003]
[1744610627304,0.189414,84471.0,84470.0,0.006]
[1744610627500,0.189414,84471.0,84470.0,0.008]
[1744610628115,0.011838,84472.0,84470.0,0.008]
[1744610628315,0.201252,84472.0,84470.0,0.002]
[1744610628702,0.189416,84470.0,84469.0,0.006]
[1744610629515,0.201267,84465.0,84461.0,1.9e-07]
[1744610629858,0.201267,84465.0,84462.0,0.01074957]
[1744610631756,0.201252,84472.0,84462.0,0.01074957]
[1744610631757,0.201248,84473.0,84468.0,0.011838]
[1744610631954,0.20124,84476.0,84471.0,0.011838]
[1744610632193,0.20124,84476.0,84472.0,0.189411]
[1744610632386,0.189407,84474.0,84473.0,0.01078708]
[1744610632578,0.189417,84470.0,84463.0,0.011839]
[1744610632882,0.011839,84465.0,84464.0,0.01077698]
[1744610633077,0.011838,84467.0,84464.0,0.01077698]
[1744610633386,0.201261,84467.0,84465.0,0.01076675]
[1744610633580,0.201261,84467.0,84463.0,0.011839]
[1744610633759,0.201261,84467.0,84464.0,0.01076675]
[1744610633964,0.011838,84467.0,84464.0,0.01076675]
[1744610634169,0.011838,84467.0,84464.0,0.02260575]
[1744610634370,0.011838,84469.0,84465.0,0.011839]
[1744610634690,0.011838,84469.0,84466.0,0.01077357]
[1744610635051,0.18942,84468.0,84466.0,0.01077357]
[1744610635448,0.189429,84464.0,84463.0,0.003]
[1744610635670,0.011838,84468.0,84463.0,0.011839]
[1744610635880,0.011838,84468.0,84466.0,0.002]
[1744610636030,0.189423,84467.0,84466.0,0.002]
[1744610636459,0.189423,84467.0,84466.0,0.003]
[1744610637563,0.237423,84467.0,84466.0,0.003]
[1744610638052,0.25943181,84467.0,84466.0,0.003]
[1744610638246,0.189434,84462.0,84461.0,1.9e-07]
[1744610639106,0.011839,84464.0,84461.0,1.9e-07]
[1744610639387,0.01100256,84466.0,84462.0,0.011839]
[1744610639803,0.02284156,84466.0,84463.0,0.189432]
[1744610640009,0.02284156,84466.0,84462.0,0.011839]
[1744610640547,0.011838,84469.0,84464.0,0.011839]
[1744610640677,0.201259,84468.0,84464.0,0.011839]
[1744610640875,0.201263,84467.0,84465.0,0.01088687]
[1744610641293,0.011839,84464.0,84461.0,0.00200019]
[1744610641526,0.189434,84462.0,84461.0,0.00400019]
[1744610641725,0.189434,84462.0,84461.0,1.9e-07]
[1744610641884,0.237434,84462.0,84461.0,1.9e-07]
[1744610642724,0.237434,84462.0,84461.0,0.00200019]
[1744610643809,0.2484469,84462.0,84461.0,0.00200019]
[1744610645492,0.27049902,84462.0,84461.0,0.00200019]
[1744610645908,0.28912319,84462.0,84461.0,0.00200019]
[1744610646106,0.27049902,84462.0,84461.0,0.00200019]
[1744610648555,0.27049902,84462.0,84461.0,1.9e-07]
[1744610648759,0.31739902,84462.0,84461.0,1.9e-07]
[1744610649762,0.07996502,84462.0,84461.0,1.9e-07]
[1744610649973,0.03406502,84462.0,84461.0,0.18943619]
[1744610650375,0.03406502,84462.0,84461.0,0.20037172]
[1744610650750,0.0120129,84462.0,84461.0,0.20037172]
[1744610651000,0.0120129,84462.0,84461.0,0.01093572]
[1744610651320,0.2014469,84462.0,84461.0,0.01093572]
[1744610651520,0.2014469,84462.0,84461.0,1.9e-07]
[1744610652142,0.22349113,84462.0,84461.0,1.9e-07]
[1744610653928,0.56349113,84462.0,84461.0,1.9e-07]
[1744610654244,0.64738934,84462.0,84461.0,1.9e-07]
[1744610654445,0.56349113,84462.0,84461.0,1.9e-07]
[1744610656836,0.5414469,84462.0,84461.0,1.9e-07]
[1744610657279,1.0048469,84462.0,84461.0,1.9e-07]
[1744610657527,1.12568844,84462.0,84461.0,1.9e-07]
[1744610658173,1.14772866,84462.0,84461.0,1.9e-07]
[1744610659994,1.12568844,84462.0,84461.0,1.9e-07]
[1744610662784,1.39421692,84462.0,84461.0,1.9e-07]
[1744610663567,1.39321692,84462.0,84461.0,1.9e-07]
[1744610663972,1.39621692,84462.0,84461.0,1.9e-07]
[1744610664375,1.27548844,84462.0,84461.0,1.9e-07]
[1744610665190,1.27248844,84462.0,84461.0,1.9e-07]
[1744610665640,1.27648844,84462.0,84461.0,1.9e-07]
[1744610666206,1.27948844,84462.0,84461.0,1.9e-07]
[1744610667000,1.27648844,84462.0,84461.0,1.9e-07]
[1744610667336,1.31281862,84462.0,84461.0,1.9e-07]
[1744610669292,1.31381862,84462.0,84461.0,1.9e-07]
[1744610669491,1.32835947,84462.0,84461.0,1.9e-07]
[1744610672176,0.72585,84455.0,84454.0,0.0004223]
[1744610672471,1.26319154,84455.0,84454.0,0.00054855]
[1744610672825,1.39493292,84455.0,84454.0,0.00054855]
[1744610673478,1.40093292,84455.0,84454.0,0.00054855]
[1744610674903,1.28020444,84455.0,84454.0,0.00054855]
[1744610676356,1.43276444,84455.0,84454.0,0.00054855]
[1744610678706,2.65184444,84455.0,84454.0,0.00054855]
[1744610681071,0.55004085,84454.0,84453.0,6.5e-07]
[1744610681273,0.55004085,84454.0,84442.0,0.0004223]
[1744610681274,0.629476,84443.0,84442.0,0.0004223]
[1744610681430,0.629476,84443.0,84442.0,0.00056131]
[1744610681431,0.75031754,84443.0,84442.0,0.00056131]
[1744610682434,0.76533044,84443.0,84442.0,0.00056131]
[1744610682667,0.77033044,84443.0,84442.0,0.00056131]
[1744610683985,0.76633044,84443.0,84442.0,0.00056131]
[1744610684207,0.77133044,84443.0,84442.0,0.00056131]
[1744610684408,0.89205892,84443.0,84442.0,0.00056131]
[1744610686500,1.19654604,84443.0,84442.0,0.00056131]
[1744610689615,1.21208689,84443.0,84442.0,0.00056131]
[1744610690731,1.36464689,84443.0,84442.0,0.00056131]
[1744610692451,0.87147954,84442.0,84428.0,0.0004219]
[1744610692640,0.99240329,84442.0,84428.0,0.0004219]
[1744610692840,1.11313177,84442.0,84428.0,0.0004219]
[1744610693043,1.12414467,84442.0,84428.0,0.0004219]
[1744610693413,1.00341619,84442.0,84428.0,0.0004219]
[1744610693609,1.00741619,84442.0,84428.0,0.0004219]
[1744610693807,1.01241619,84442.0,84428.0,0.0004219]
[1744610694508,0.99687534,84442.0,84428.0,0.0004219]
[1744610694879,1.14947534,84442.0,84428.0,0.0004219]
[1744610695259,1.27020382,84442.0,84428.0,0.0004219]
[1744610695960,1.11760382,84442.0,84428.0,0.0004219]
[1744610696184,1.27020382,84442.0,84428.0,0.0004219]
[1744610697511,1.27020382,84442.0,84440.0,3e-07]
[1744610697512,0.630481,84441.0,84440.0,3e-07]
[1744610697696,0.87205102,84441.0,84440.0,3e-07]
[1744610697901,0.629508,84429.0,84428.0,6e-07]
[1744610698082,0.75034954,84429.0,84428.0,6e-07]
[1744610698278,0.66136244,84429.0,84428.0,6e-07]
[1744610698478,0.76136244,84429.0,84428.0,6e-07]
[1744610699692,0.77326317,84429.0,84428.0,6e-07]
[1744610699895,0.67326317,84429.0,84428.0,6e-07]
[1744610700098,0.82514317,84429.0,84428.0,6e-07]
[1744610701377,0.82714317,84429.0,84428.0,6e-07]
[1744610706986,1.24308186,84429.0,84428.0,6e-07]
[1744610708868,0.58087159,84429.0,84428.0,6e-07]
[1744610709077,0.92087159,84429.0,84428.0,6e-07]
[1744610709656,1.03337324,84429.0,84428.0,6e-07]
[1744610710076,0.91887159,84429.0,84428.0,6e-07]
[1744610710488,0.92087159,84429.0,84428.0,6e-07]
[1744610710840,0.91787159,84429.0,84428.0,6e-07]
[1744610712304,0.91787159,84429.0,84420.0,0.0487223]
[1744610712305,0.189526,84421.0,84420.0,0.0487223]
[1744610712449,0.189526,84421.0,84411.0,0.002]
[1744610712450,0.189546,84412.0,84411.0,0.002]
[1744610712664,0.81028044,84412.0,84411.0,0.002]
[1744610713267,0.81899205,84412.0,84408.0,0.0004223]
[1744610713467,0.529553,84409.0,84408.0,0.0004223]
[1744610713649,0.67243279,84409.0,84408.0,0.0004223]
[1744610713853,0.67243279,84409.0,84408.0,0.00088657]
[1744610714053,0.68344569,84409.0,84408.0,0.00088657]
[1744610715651,0.83232569,84409.0,84408.0,0.00088657]
[1744610716016,0.83432569,84409.0,84408.0,0.00088657]
[1744610716383,0.83632569,84409.0,84408.0,0.00088657]
[1744610718446,1.25226438,84409.0,84408.0,0.00088657]
[1744610719448,1.37299286,84409.0,84408.0,0.00088657]
[1744610719633,1.25226438,84409.0,84408.0,0.00088657]
[1744610720346,1.23022613,84409.0,84408.0,0.00088657]
[1744610720553,1.25224179,84409.0,84408.0,0.00088657]
[1744610723320,1.34934179,84409.0,84408.0,0.00088657]
[1744610725033,1.30104179,84409.0,84408.0,0.00088657]
[1744610725477,1.34963845,84409.0,84408.0,0.00088657]
[1744610725854,1.30104179,84409.0,84408.0,0.00088657]
[1744610727252,1.25224179,84409.0,84408.0,0.00088657]
[1744610727477,0.91380879,84409.0,84408.0,0.00088657]
[1744610727636,0.94380725,84409.0,84408.0,0.00088657]
[1744610728660,0.92179159,84409.0,84408.0,0.00088657]
[1744610728912,0.91979159,84409.0,84408.0,0.00088657]
[1744610729112,0.42695159,84409.0,84408.0,0.00088657]
[1744610729325,0.57779159,84409.0,84408.0,0.00088657]
[1744610729459,0.57879159,84409.0,84408.0,0.00866175]
[1744610731126,0.56777869,84409.0,84408.0,0.00866175]
[1744610731581,0.56777869,84409.0,84408.0,0.00088657]
[1744610732395,0.41693869,84409.0,84408.0,0.05038657]
[1744610732566,0.001,84409.0,84408.0,0.05038657]
[1744610732770,0.001,84409.0,84408.0,0.23700251]
[1744610733396,0.011846,84416.0,84408.0,0.11379169]
[1744610733598,0.011845,84417.0,84413.0,0.011846]
[1744610733802,0.011846,84411.0,84408.0,0.05138657]
[1744610734139,0.201395,84411.0,84408.0,0.05138657]
[1744610734342,0.011846,84411.0,84408.0,0.05138657]
[1744610735105,0.201395,84411.0,84408.0,0.05138657]
[1744610735309,0.201395,84411.0,84408.0,0.05338657]
[1744610735462,0.011846,84411.0,84408.0,0.05338657]
[1744610735670,0.011846,84411.0,84408.0,0.05438657]
[1744610735872,0.011846,84411.0,84408.0,0.05738657]
[1744610736208,0.511846,84411.0,84408.0,0.05638657]
[1744610736353,0.511846,84411.0,84408.0,0.05738657]
[1744610738077,0.5,84411.0,84408.0,0.25878757]
[1744610739479,0.5,84411.0,84408.0,0.06923357]
[1744610739655,0.511846,84411.0,84408.0,0.06923357]
[1744610739868,0.701395,84411.0,84408.0,0.00788657]
[1744610740890,0.701395,84411.0,84409.0,0.01763182]
[1744610741454,0.189553,84409.0,84408.0,0.00788657]
[1744610741898,0.189553,84409.0,84408.0,0.00688657]
[1744610742113,0.189553,84409.0,84408.0,0.00088657]
[1744610743101,0.20056452,84409.0,84408.0,0.00488657]
[1744610743703,0.20056452,84409.0,84408.0,0.00388657]
[1744610743881,0.189553,84409.0,84408.0,0.00388657]
[1744610744675,0.20056252,84410.0,84408.0,0.00388657]
[1744610744787,0.01101152,84410.0,84409.0,0.01762828]
[1744610745001,0.511846,84411.0,84409.0,0.01762828]
[1744610745335,0.189551,84410.0,84409.0,0.01762828]
[1744610745704,0.189551,84410.0,84408.0,0.00088657]
[1744610746137,0.189551,84410.0,84409.0,0.01866135]
[1744610746338,0.189551,84410.0,84409.0,0.001]
[1744610746676,0.18942482,84410.0,84409.0,0.001]
[1744610746832,0.18942482,84410.0,84408.0,0.00088657]
[1744610747236,0.18942482,84410.0,84408.0,0.00288657]
[1744610748239,0.511846,84411.0,84408.0,0.00288657]
[1744610748436,0.5,84411.0,84409.0,0.01766296]
[1744610748650,0.5,84411.0,84409.0,0.01866296]
[1744610749036,0.5,84411.0,84409.0,0.01766296]
[1744610749277,0.511846,84411.0,84408.0,0.00288657]
[1744610749486,0.511846,84411.0,84409.0,0.01766245]
[1744610749706,0.189551,84410.0,84408.0,0.00088657]
[1744610749910,0.189551,84410.0,84409.0,0.001]
[1744610750038,0.189551,84410.0,84409.0,0.0186589]
[1744610750239,0.189551,84410.0,84408.0,0.00088657]
[1744610751545,0.189551,84410.0,84408.0,0.00288657]
[1744610751745,0.189551,84410.0,84408.0,0.00088657]
[1744610752197,0.189551,84410.0,84408.0,0.00288657]
[1744610754914,0.189551,84410.0,84408.0,0.00088657]
[1744610755696,0.189551,84410.0,84408.0,0.00188657]
[1744610756777,0.5,84411.0,84408.0,0.00188657]
[1744610757159,0.5,84411.0,84409.0,0.189553]
[1744610757321,0.5,84411.0,84410.0,0.0487]
[1744610757494,0.5,84411.0,84410.0,0.06631314]
[1744610758314,0.5,84411.0,84410.0,0.18715468]
[1744610758683,0.501,84411.0,84410.0,0.18715468]
[1744610759216,0.5,84411.0,84410.0,0.19115468]
[1744610760035,0.5,84411.0,84410.0,0.18715468]
[1744610760238,0.5,84411.0,84410.0,0.19215468]
[1744610760562,0.5,84411.0,84410.0,0.20769553]
[1744610760760,0.5,84411.0,84410.0,0.54769553]
[1744610760922,0.14964,84434.0,84433.0,0.238199]
[1744610761334,0.14964,84434.0,84433.0,0.2557324]
[1744610762161,0.15064,84434.0,84433.0,0.2557324]
[1744610762398,0.15064,84434.0,84433.0,0.0662334]
[1744610763164,0.15064,84434.0,84433.0,0.0175334]
[1744610763579,0.15064,84434.0,84426.0,0.189512]
[1744610763580,0.011843,84431.0,84417.0,0.189533]
[1744610763789,0.011844,84429.0,84425.0,0.011844]
[1744610763980,0.201348,84431.0,84425.0,0.011844]
[1744610764182,0.201348,84431.0,84427.0,0.011844]
[1744610764376,0.011843,84431.0,84427.0,0.011844]
[1744610765344,0.011844,84429.0,84425.0,0.001]
[1744610765547,0.201354,84428.0,84425.0,0.001]
[1744610765784,0.011845,84422.0,84417.0,0.011845]
[1744610765894,0.011845,84422.0,84411.0,0.011846]
[1744610765895,0.011846,84412.0,84408.0,0.01273357]
[1744610766300,0.189551,84410.0,84408.0,0.00088657]
[1744610767801,0.14964,84421.0,84417.0,0.011845]
[1744610767996,0.14964,84421.0,84418.0,0.189533]
[1744610768219,0.14964,84421.0,84418.0,0.011845]
[1744610768638,0.161485,84421.0,84417.0,0.011845]
[1744610768842,0.011845,84418.0,84414.0,0.011846]
[1744610768958,0.201378,84418.0,84417.0,0.002]
[1744610769164,0.189537,84416.0,84415.0,0.01755693]
[1744610769407,0.011846,84414.0,84409.0,0.011847]
[1744610769616,0.189553,84409.0,84408.0,0.00088657]
[1744610772138,0.189553,84409.0,84408.0,0.00488657]
[1744610772536,0.201395,84411.0,84408.0,0.00488657]
[1744610773352,0.011846,84411.0,84408.0,0.00488657]
[1744610773889,0.011846,84411.0,84408.0,0.00388657]
[1744610774102,0.011846,84411.0,84408.0,0.00088657]
[1744610774303,0.011846,84411.0,84408.0,0.00188657]
[1744610774437,0.011846,84411.0,84408.0,0.00488657]
[1744610774797,0.011845,84417.0,84408.0,0.00488657]
[1744610774798,0.339166,84421.0,84411.0,0.011846]
[1744610775044,0.14964,84421.0,84419.0,0.18953]
[1744610775247,0.41593869,84427.0,84424.0,0.189517]
[1744610775423,0.41593869,84427.0,84417.0,0.011845]
[1744610775424,0.529584,84395.0,84381.0,0.002]
[1744610775582,0.679224,84395.0,84381.0,0.002]
[1744610775777,0.76810547,84395.0,84381.0,0.002]
[1744610775978,0.529613,84382.0,84381.0,0.002]
[1744610776380,0.66145118,84382.0,84381.0,0.002]
[1744610776804,0.67328782,84382.0,84381.0,0.002]
[1744610777208,0.67328782,84382.0,84357.0,0.01649761]
[1744610777209,0.34,84376.0,84374.0,9e-07]
[1744610777387,0.011853,84360.0,84357.0,0.01649761]
[1744610777723,0.34,84358.0,84357.0,0.01663686]
[1744610777922,0.65050854,84358.0,84357.0,0.01663686]
[1744610778178,0.66150518,84358.0,84357.0,0.01663686]
[1744610778782,0.6591773,84358.0,84357.0,0.01663686]
[1744610779071,0.6591773,84358.0,84357.0,0.01763686]
[1744610779442,0.6591773,84358.0,84357.0,0.01963686]
[1744610780483,0.6591773,84358.0,84357.0,0.01863686]
[1744610781097,0.53833576,84358.0,84357.0,0.01963686]
[1744610781297,0.53833576,84358.0,84357.0,0.01663686]
[1744610781543,0.53933576,84358.0,84357.0,0.01663686]
[1744610782296,0.68901576,84358.0,84357.0,0.01663686]
[1744610783260,1.22579599,84358.0,84357.0,0.01663686]
[1744610783471,1.34446057,84358.0,84357.0,0.01663686]
[1744610783637,1.22579599,84358.0,84357.0,0.01663686]
[1744610783845,1.22479599,84358.0,84357.0,0.01663686]
[1744610784248,1.22579599,84358.0,84357.0,0.01663686]
[1744610784664,1.22579599,84358.0,84321.0,0.002]
[1744610784665,0.34,84329.0,84321.0,0.002]
[1744610784864,1.36470446,84328.0,84321.0,0.002]
[1744610785021,1.36233523,84328.0,84321.0,0.002]